Cogmind - Beta 15 @@@ ROGUE MODE // 2025.06.24 @ 19:00:19 Player: EX-OCT Result: Destroyed by P-60 Hacker with Shock Rifle Performance ------------- Evolutions (2) 1000 Regions Visited (7) 1400 Robots Destroyed (69) 345 Value Destroyed (2253) 2253 Prototype IDs (1) 20 Alien Tech Used (0) 0 Bonus (1074) 1074 TOTAL SCORE: 6092 Bonus ------- High Alert Combat Kills 19 Follower Combat Kills 155 Entered Garrisons 400 Used RIF Installer 500 Cogmind --------- Core Integrity 0/550 Matter 179/300 Energy 60/100 System Corruption 12% Temperature Cool (0) Movement Core (50) Location -8/Garrison Parts ------- > --- POWER (1) -------- (None) > --- PROPULSION (4) --- (None) > --- UTILITY (4) ------ Hacking Suite Relay Coupler [Swarmer] (21) Relay Coupler [Grunt] (38) > --- WEAPON (2) ------- (None) > --- INVENTORY (5) ---- Layered Light Armor Plating Relay Coupler [NC] (35) Relay Coupler [Grunt] (40) Remote Datajack Heavy Mace Peak State ------------ > --- POWER ------------ Light Nuclear Core > --- PROPULSION ------- Carbon-fiber Leg Carbon-fiber Leg Carbon-fiber Leg Carbon-fiber Leg > --- UTILITY ---------- Large Storage Unit Hacking Suite Relay Coupler [Grunt] Relay Coupler [Hunter] > --- WEAPON ----------- Gauss Rifle Improved Light Cannon > --- INVENTORY -------- Light Ion Engine Carbon-fiber Leg Carbon-fiber Leg Improved Heat Sink Advanced Weight Redist. System Experimental Sensor Array ECM Suite Layered Light Armor Plating Layered Light Armor Plating Relay Coupler [NC] Relay Coupler [Swarmer] Rocket Launcher Heavy Mace [Rating: 37] Favorites ----------- Power Light Nuclear Core Engine Light Ion Engine Power Core Light Nuclear Core Propulsion Carbon-fiber Leg Treads Advanced Treads Leg Carbon-fiber Leg Wheel Subdweller Monowheel Hover Unit Hover Unit Flight Unit Flight Unit Utility Large Storage Unit Device Improved Heat Sink Storage Large Storage Unit Hackware Hacking Suite Protection Scrap Shield Weapon Riot Gun Energy Gun Riot Gun Ballistic Gun Assault Rifle Ballistic Cannon Improved Light Cannon Launcher Rocket Launcher Special Weapon Mining Laser Impact Weapon Heavy Mace Special Melee Weapon Datajack Build | -11 -10 -10 -10 -8 -8 -8 -8 ------- Run | Yrd Mat Min Sub Mat Gar Mat Gar Slots Evolved 4 | . . . . 4 . . . Power . | . . . . . . . . Propulsion 2 | . . . . 2 . . . Utility 2 | . . . . 2 . . . Weapon . | . . . . . . . . Parts Attached 72 | 4 7 5 10 28 7 5 6 Power 6 | . . . 2 1 1 1 1 Engine 4 | . . . 1 1 1 . 1 Core 2 | . . . 1 . . 1 . Reactor . | . . . . . . . . Propulsion 26 | 2 3 4 2 11 . 3 1 Treads 6 | 2 . 1 1 2 . . . Leg 12 | . . . . 8 . 3 1 Wheel 2 | . . . 1 1 . . . Hover 4 | . 3 1 . . . . . Flight 2 | . . 2 . . . . . Utility 21 | 1 1 . 3 9 5 . 2 Device 2 | 1 . . . 1 . . . Storage 2 | . 1 . . 1 . . . Processor . | . . . . . . . . Hackware 7 | . . . . 2 3 . 2 Protection 10 | . . . 3 5 2 . . Artifact . | . . . . . . . . Weapon 19 | 1 3 1 3 7 1 1 2 Energy Gun 3 | . . . 1 2 . . . Energy Cannon . | . . . . . . . . Ballistic Gun 6 | 1 . 1 1 1 . 1 1 Ballistic Cannon 3 | . . . 1 2 . . . Launcher 2 | . 1 . . 1 . . . Special Weapon 3 | . 2 . . . . . 1 Impact Weapon 1 | . . . . 1 . . . Slashing Weapon . | . . . . . . . . Piercing Weapon . | . . . . . . . . Special Melee Weapon 1 | . . . . . 1 . . Unidentified Prototypes . | . . . . . . . . Corrupted Parts 2 | . . . . 2 . . . System Corruption 7 | . . . . 7 . . . Parts Lost 33 | . 1 4 . 13 2 3 10 Power 5 | . . . . 1 1 1 2 Propulsion 18 | . 1 3 . 7 . 2 5 Utility 1 | . . . . 1 . . . Weapon 9 | . . 1 . 4 1 . 3 Highest Loss Streak 8 | . 1 2 . 7 2 3 8 To Critical Strikes . | . . . . . . . . Average Backups 8 | . 6 9 5 8 13 12 14 Power . | . 1 1 . . . . . Propulsion 1 | . 2 1 . . 3 2 . Utility 4 | . 2 3 3 4 7 8 10 Weapon 1 | . 1 2 1 1 1 1 1 Tool/Special . | . . . . . . . . Unused Backups 16 | . . 2 2 . . . 12 Power . | . . . . . . . . Propulsion 4 | . . 2 2 . . . . Utility 11 | . . . . . . . 11 Weapon . | . . . . . . . . Tool/Special 1 | . . . . . . . 1 Average Slot Usage (%) 78 | . 57 54 79 82 96 96 92 Engine 3 | . . . 4 4 8 6 5 Core 2 | . . . 7 3 . 1 2 Treads 8 | . 7 3 16 11 . . . Leg 12 | . . . . 15 36 35 32 Wheel 2 | . . . 9 1 . . . Hover 4 | . 20 12 . . . . . Flight 1 | . . 10 2 . . . . Device 1 | . 3 . . 2 1 . . Storage 7 | . 10 14 2 7 9 9 8 Hackware 8 | . . . . 7 21 27 26 Protection 6 | . . . 11 13 4 . . Energy Gun 3 | . . . 11 5 . . . Ballistic Gun 4 | . 10 12 2 2 . 1 6 Ballistic Cannon 4 | . . . 9 3 5 9 . Special Weapon 1 | . 3 1 1 . . . 2 Impact Weapon 2 | . . . . 2 6 6 7 Peak Build Rating 37 | 4 5 7 18 33 35 37 37 Average Rating 19 | 2 4 4 15 25 32 33 34 On Entrance 16 | . 4 4 6 18 32 31 37 Naked Turns . | . . . . . . . . Heaviest Build 58 | 3 12 12 29 58 38 33 32 Greatest Support 82 | 20 40 22 42 82 60 60 60 Greatest Overweight (x) 12 | . . 3 1 12 . . 1 Average Overweight (x) . | . . . . . . . . Largest Inventory Capacity 15 | 5 10 10 10 15 15 15 15 Average Capacity 10 | 5 8 10 5 13 15 15 14 Most Carried 15 | 1 10 10 10 12 15 13 15 Average Carried 8 | . 6 9 5 8 13 12 14 Final Capacity 15 | 5 10 10 5 15 15 15 5 Final Carried 13 | 1 9 10 5 12 13 13 5 Class Distribution -------------------- 69% | Mutant 9% | Hacker-Mutant 9% | Derelict-Mutant 8% | Bothacker-Mutant Dominant Class ---------------- Mutant | -10/Materials Mutant | -10/Mines Mutant | -10/Subcaves Mutant | -8/Materials Mutant | -8/Garrison Mutant | -8/Materials Bothacker-Mutant | -8/Garrison Resources | -11 -10 -10 -10 -8 -8 -8 -8 ----------- Run | Yrd Mat Min Sub Mat Gar Mat Gar Matter Collected 1801 | 249 127 221 251 487 195 93 178 Remotely . | . . . . . . . . Salvage Created 2041 | 74 157 121 196 729 120 455 189 Parts 118 | 5 13 12 11 25 12 21 19 Haulers Intercepted 2 | . 1 . . 1 . . . Recyclers Shooed 2 | . . . . 2 . . . Parts Field Recycled . | . . . . . . . . Retrieved Matter . | . . . . . . . . Parts Self-Destructed 10 | . . . 10 . . . . Prevented 1 | . . . 1 . . . . Kills | -11 -10 -10 -10 -8 -8 -8 -8 ------- Run | Yrd Mat Min Sub Mat Gar Mat Gar Combat Hostiles Destroyed 52 | . 8 4 6 9 5 11 9 Melee 7 | . . . . 1 . 5 1 Guns 18 | . 2 4 4 4 . 1 3 Cannons 5 | . . . 1 2 2 . . AOE 18 | . 6 . . 2 3 2 5 Classes Destroyed 15 | 2 5 . 1 5 . 1 1 Worker 3 | . . . . 2 . 1 . Builder 2 | . . . . 2 . . . Tunneler 1 | 1 . . . . . . . Hauler 2 | . 1 . . 1 . . . Recycler 5 | 1 . 1 . 3 . . . Mechanic 1 | . . . . 1 . . . Operator 2 | . 1 . . 1 . . . Watcher 1 | . 1 . . . . . . Swarmer 20 | . 6 4 1 . 2 2 5 Grunt 15 | . 2 . 1 6 2 4 . Duelist 1 | . . . . . . 1 . Sentry 6 | . . . . 2 1 3 . Hunter 2 | . . . . 1 . 1 . Programmer 4 | . . . . . . . 4 Subdweller 4 | . . . 4 . . . . Best Kill Streak 6 | 2 4 3 2 6 3 5 3 Combat Bots Only 5 | . 4 3 2 2 3 5 3 Max Kills in Single Turn 3 | 1 2 1 1 2 2 2 3 Gunslinging . | . . . . . . . . Exploded 3 | . 2 . . 1 2 2 3 Melee 1 | . . . . 1 . 1 1 Uniques/NPCs Destroyed . | . . . . . . . . Combat | -11 -10 -10 -10 -8 -8 -8 -8 -------- Run | Yrd Mat Min Sub Mat Gar Mat Gar Hostile Shots Fired 427 | . 54 27 23 134 23 70 96 Missed 111 | . 15 8 6 28 9 26 19 Hits 316 | . 39 19 17 106 14 44 77 Melee 4 | . . 4 . . . . . Projectile 312 | . 39 15 17 106 14 44 77 AOE 2 | . . 2 . . . . . Critical Strikes 13 | . 1 1 1 8 . 1 1 Part Disruptions 1 | . . . . . . . 1 Damage Taken 4998 | . 562 282 327 2030 248 567 982 Core 750 | . 118 80 . 276 45 56 175 Absorbed by Shields . | . . . . . . . . Ignored by Resistances 9 | . . . . 9 . . . Regen/Repaired (Parts) 12 | . 12 . . . . . . Core Remaining (%) 60 | 100 . . 20 . . . . Volleys Fired 177 | 3 40 18 28 49 7 5 27 Largest 2 | 1 2 1 2 2 2 2 2 Hottest 110 | 20 100 20 83 110 66 66 48 Shots Fired 239 | 3 47 18 46 78 10 10 27 Gun 155 | 3 36 18 22 50 . 4 22 Cannon 59 | . . . 24 25 5 5 . Launcher 19 | . 7 . . 3 5 1 3 Special 6 | . 4 . . . . . 2 Kinetic 172 | 3 36 18 29 50 5 9 22 Thermal 4 | . 4 . . . . . . Explosive 19 | . 7 . . 3 5 1 3 Electromagnetic 42 | . . . 17 25 . . . Robot Hit Streak 13 | 3 7 6 13 6 7 4 5 Robot Miss Streak 4 | . 2 2 2 4 . 2 4 Penetration Max 1 | . . . . . . 1 1 Secondary Targets 1 | . . . . 1 . . . Max Gunslinging Chain 1 | . . . . 1 . . . Shots Hit Robots 186 | 3 30 12 32 53 9 30 17 Core Hits 111 | 3 18 8 13 36 8 9 16 Critical Kills 4 | . . . . 1 . 2 1 Critical Parts Destroyed 6 | . . . . . . 5 1 Critical Strikes 12 | . . . 2 1 . 7 2 Destroy 1 | . . . . . . . 1 Blast 2 | . . . 2 . . . . Smash 9 | . . . . 1 . 7 1 Melee Attacks 62 | . . . . 9 14 26 13 Impact 57 | . . . . 9 9 26 13 Slashing . | . . . . . . . . Piercing . | . . . . . . . . Sneak Attacks 3 | . . . . 2 . 1 . Combat Hostiles . | . . . . . . . . Follow-up Attacks . | . . . . . . . . Damage Inflicted 5875 | 35 857 104 609 1614 477 1215 964 Guns 1825 | 35 313 102 313 560 . 71 431 Cannons 751 | . . . 296 326 89 40 . Explosions 1814 | . 520 . . 400 344 128 422 Melee 1430 | . . . . 313 44 976 97 Ramming 31 | . . 2 . 15 . . 14 Kinetic 2034 | 35 313 102 356 597 89 111 431 Thermal 135 | . 24 . . 111 . . . Explosive 1703 | . 520 . . 289 344 128 422 Electromagnetic 542 | . . . 253 289 . . . Impact 1430 | . . . . 313 44 976 97 Slashing . | . . . . . . . . Piercing . | . . . . . . . . Highest Corruption 12 | . 2 2 2 7 7 7 12 Average Corruption 4 | . 2 2 2 6 7 7 8 Corruption Purged . | . . . . . . . . Corruption Blocked . | . . . . . . . . Effects 74 | . 9 3 11 18 14 7 12 Message Errors 17 | . 1 1 3 6 2 2 2 Matter Fused 15 | . 3 2 1 1 4 . 4 Heat Flow Errors 5 | . . . . 1 1 1 2 Energy Discharges 6 | . 2 . . 1 2 1 . Parts Rejected 4 | . 1 . . 1 1 . 1 Parts Fused 2 | . 1 . . . . 1 . Data Loss (minor) 7 | . 1 . 2 2 2 . . Data Loss (major) 7 | . . . 2 2 1 1 1 Misfires 4 | . . . 3 1 . . . Alerts 4 | . . . . 1 1 1 1 Weapon Failures 3 | . . . . 2 . . 1 Overload Shots . | . . . . . . . . Overflow Damage 428 | . 14 . . 133 . 253 28 Projectiles 24 | . . . . 24 . . . Explosions 47 | . 14 . . 10 . 13 10 Melee 357 | . . . . 99 . 240 18 Knockbacks 16 | . . . 1 11 1 3 . Impact 2 | . . . . 1 . 1 . Kinetic 11 | . . . 1 7 1 2 . Secondary 3 | . . . . 3 . . . Self-Inflicted Damage 206 | . 58 . . 137 . . 11 Shots 8 | . 3 . . 4 . . 1 Rammed 8 | . . 3 . 4 . . 1 Targets Rammed 9 | . . 3 . 5 . . 1 Kicked 1 | . . . . 1 . . . Crushed . | . . . . . . . . Highest Temperature 542 | . 48 . 5 542 203 109 213 Average Temperature 193 | . 16 . 4 238 110 31 111 Received Heat Transfer 1662 | . 273 15 33 1017 108 216 . Effects 22 | . . . . 22 . . . Shutdowns 4 | . . . . 4 . . . Energy Bleed 1 | . . . . 1 . . . Interference 4 | . . . . 4 . . . Short Circuit 4 | . . . . 4 . . . Damage (minor) 3 | . . . . 3 . . . Damage (major) 5 | . . . . 5 . . . Damage (core) 1 | . . . . 1 . . . Siege Activations . | . . . . . . . . Martial Activations . | . . . . . . . . Shielding Activations . | . . . . . . . . Robots Disrupted . | . . . . . . . . Combat Hostiles . | . . . . . . . . Robots Corrupted 5 | . . . 1 1 . 3 . Combat Hostiles 4 | . . . 1 . . 3 . Parts Fried 6 | . . . 1 3 . 2 . Impact Corruptions 11 | . . . . 3 . 7 1 Robots Melted . | . . . . . . . . Combat Hostiles . | . . . . . . . . Parts Melted . | . . . . . . . . Heat Transferred 200 | . 50 . . 150 . . . Parts Sabotaged . | . . . . . . . . Parts Stolen . | . . . . . . . . Parts Stripped . | . . . . . . . . Power Chain Reactions 1 | . . . . 1 . . . Alert | -11 -10 -10 -10 -8 -8 -8 -8 ------- Run | Yrd Mat Min Sub Mat Gar Mat Gar Maximum Alert Level 2 | . . . . . 2 1 2 Low Security (%) 71 | 100 100 100 . 100 42 . . Level 1 26 | . . . . . 48 100 92 Level 2 2 | . . . . . 9 . 8 Level 3 . | . . . . . . . . Level 4 . | . . . . . . . . Level 5 . | . . . . . . . . High Security . | . . . . . . . . Max Security . | . . . . . . . . Peak Influence 500 | 5 163 94 . 64 500 380 416 Initial 227 | . 3 8 . . 39 214 227 Average 115 | 2 45 48 . 13 236 288 316 Influence Increases 2159 | 10 392 239 65 407 481 336 229 Destroy 0b10 Robot/C 1100 | . 160 140 40 180 180 220 180 Destroy 0b10 Robot/NC 85 | 10 15 5 . 50 . 5 . Destroy Leader 196 | . 34 20 10 52 10 70 . Allied During Kill 54 | . . 14 . . 38 2 . Successful Hack 69 | . 28 . . 19 . 10 12 Select Force Hacks 30 | . 30 . . . . . . Disable Machine 15 | . . . . . . 15 . Anti-Garrison Action 150 | . . . . . 150 . . Destroy Structure 160 | . 35 . . 31 43 14 37 Partial Spotted 30 | . 30 . . . . . . Lose Combat Pursuer 270 | . 60 60 15 75 60 . . Influence Decreases 1803 | 5 374 253 74 347 101 426 223 Entered New Map 392 | . 2 15 5 . 21 226 123 Time Decay 800 | 5 211 138 69 247 . 130 . Lost Part 300 | . 10 40 . 100 20 30 100 Lost Ally 170 | . 10 60 . . 60 40 . Purge Threat 141 | . 141 . . . . . . Squads Dispatched 7 | . 3 . . 1 . 3 . Investigation 3 | . 2 . . . . 1 . Extermination . | . . . . . . . . Reinforcement 2 | . 1 . . 1 . . . Assault . | . . . . . . . . Garrison 2 | . . . . . . 2 . Intercept . | . . . . . . . . Searches Triggered . | . . . . . . . . Construction Impeded . | . . . . . . . . Haulers Reinforced . | . . . . . . . . Active Scanning Responses . | . . . . . . . . Cargo Convoy Interrupts . | . . . . . . . . Stealth | -11 -10 -10 -10 -8 -8 -8 -8 --------- Run | Yrd Mat Min Sub Mat Gar Mat Gar Distress Signals 2 | . 2 . . . . . . Communications Jammed . | . . . . . . . . Distress Signals . | . . . . . . . . Times Spotted 130 | . 20 16 8 33 21 18 14 Peak Tracking Total 7 | . 4 4 2 7 6 7 6 Tactical Retreats 11 | . 2 3 1 3 2 . . Traps | -11 -10 -10 -10 -8 -8 -8 -8 ------- Run | Yrd Mat Min Sub Mat Gar Mat Gar Traps Triggered 2 | . 1 . . . 1 . . Indirectly . | . . . . . . . . Trap Hack Attempts . | . . . . . . . . Triggered . | . . . . . . . . Disarmed . | . . . . . . . . Reprogrammed . | . . . . . . . . Reused . | . . . . . . . . Traps Extracted . | . . . . . . . . Installed . | . . . . . . . . Triggered . | . . . . . . . . Machines | -11 -10 -10 -10 -8 -8 -8 -8 ---------- Run | Yrd Mat Min Sub Mat Gar Mat Gar Machines Disabled 4 | . . . . . 3 1 . Max in Single Turn 2 | . . . . . 2 1 . Garrison Relay 1 | . . . . . 1 . . Phase Generator 1 | . . . . . 1 . . Machines Repaired . | . . . . . . . . Machines Dismantled . | . . . . . . . . Machines Sabotaged . | . . . . . . . . Overloaded Fab Kills . | . . . . . . . . Hacking | -11 -10 -10 -10 -8 -8 -8 -8 --------- Run | Yrd Mat Min Sub Mat Gar Mat Gar Machines Accessed 24 | . 10 1 . 9 1 2 1 Terminals 17 | . 8 . . 7 1 . 1 Fabricators . | . . . . . . . . Repair Stations 1 | . 1 . . . . . . Recycling Units 1 | . 1 . . . . . . Scanalyzers 2 | . . . . 1 . 1 . Garrison Access 2 | . . . . 1 . 1 . Total Hacks 76 | . 32 1 . 33 2 6 2 Successful 42 | . 19 1 . 18 . 3 1 Failed 34 | . 13 . . 15 2 3 1 Catastrophic 3 | . 2 . . 1 . . . Database Lockouts . | . . . . . . . . Manual 50 | . 25 . . 22 . 3 . Terminals 61 | . 30 . . 27 2 . 2 Fabricators . | . . . . . . . . Repair Stations 1 | . 1 . . . . . . Recycling Units 1 | . 1 . . . . . . Scanalyzers 6 | . . . . 4 . 2 . Garrison Access 6 | . . . . 2 . 4 . Terminal Hacks 12 | . 6 1 . 4 . . 1 Robot Analysis 2 | . 2 . . . . . . Open Door 1 | . . 1 . . . . . Terminal Index 1 | . 1 . . . . . . Unreport Threat 1 | . 1 . . . . . . Locate Traps 1 | . . . . 1 . . . Registered Components 2 | . 1 . . 1 . . . Registered Prototypes 1 | . . . . 1 . . . Zone Layout 2 | . 1 . . 1 . . . Garrison Registry 1 | . . . . . . . 1 Fabricator Hacks . | . . . . . . . . Repair Station Hacks . | . . . . . . . . Recycling Unit Hacks . | . . . . . . . . Scanalyzer 4 | . . . . 3 . 1 . Insert Component 2 | . . . . 1 . 1 . Analyze 2 | . . . . 2 . . . Garrison Access Hacks 2 | . . . . 1 . 1 . Unlock Access 2 | . . . . 1 . 1 . Unauthorized Hacks 24 | . 13 . . 10 . 1 . Terminals 21 | . 11 . . 10 . . . Assimilate 2 | . 1 . . 1 . . . Botnet 8 | . 4 . . 4 . . . Operators 1 | . 1 . . . . . . Skim 10 | . 5 . . 5 . . . Fabricators . | . . . . . . . . Repair Stations 1 | . 1 . . . . . . Patch 1 | . 1 . . . . . . Recycling Units 1 | . 1 . . . . . . Tunnel 1 | . 1 . . . . . . Scanalyzers . | . . . . . . . . Garrison Access 1 | . . . . . . 1 . Reprogram 1 | . . . . . . 1 . Data Cores Recovered 1 | . . . . 1 . . . Used . | . . . . . . . . Hacking Detections 21 | . 8 . . 9 1 2 1 Full Trace Events 1 | . . . . . 1 . . Feedback Events . | . . . . . . . . Feedback Blocked . | . . . . . . . . Robot Schematics Acquired . | . . . . . . . . Robots Built . | . . . . . . . . Authchips . | . . . . . . . . Time . | . . . . . . . . Total Robot Build Rating . | . . . . . . . . Part Schematics Acquired . | . . . . . . . . Parts Built . | . . . . . . . . Authchips . | . . . . . . . . Time . | . . . . . . . . Total Part Build Rating . | . . . . . . . . Parts Repaired . | . . . . . . . . Time . | . . . . . . . . Parts Recycled . | . . . . . . . . Recycled Matter . | . . . . . . . . Retrieved Matter . | . . . . . . . . Retrieved Components . | . . . . . . . . Parts Scanalyzed 1 | . . . . 1 . . . Part Schematics Acquired . | . . . . . . . . Parts Damaged 1 | . . . . 1 . . . Bothacking | -11 -10 -10 -10 -8 -8 -8 -8 ------------ Run | Yrd Mat Min Sub Mat Gar Mat Gar Used RIF Installer 1 | . . . . . 1 . . Robots Hacked 4 | . . . . . 3 . 1 Non-combat . | . . . . . . . . Combat 4 | . . . . . 3 . 1 Robot Hacks Applied 4 | . . . . . 3 . 1 amplify_resonance 1 | . . . . . . . 1 formatsys_high 3 | . . . . . 3 . . Relay Couplers Released 5 | . . . . . 5 . . Machine Destruction 5 | . . . . . 5 . . Attached 5 | . . . . . 3 . 2 Fabnet Peak Effective % . | . . . . . . . . Robots Rewired . | . . . . . . . . Allies Hacked . | . . . . . . . . Hacks Repelled . | . . . . . . . . Allies | -11 -10 -10 -10 -8 -8 -8 -8 -------- Run | Yrd Mat Min Sub Mat Gar Mat Gar Total Allies 9 | . 1 3 . . 3 2 . Largest Group 3 | . 1 3 . . 3 2 . Highest-Rated Group 48 | . 10 40 . . 48 28 . Highest-Rated Ally 18 | . 10 16 . . 16 18 . Total Orders . | . . . . . . . . Ally Attacks 50 | . . 15 . . 33 2 . Total Damage 562 | . . 139 . . 394 29 . Kills 7 | . . 3 . . 4 . . Allies Corrupted . | . . . . . . . . Allies Melted . | . . . . . . . . Intel | -11 -10 -10 -10 -8 -8 -8 -8 ------- Run | Yrd Mat Min Sub Mat Gar Mat Gar Active Infowar (turns) 232 | 10 222 . . . . . . Seismic 232 | 10 222 . . . . . . Robot Analysis Total 2 | . 2 . . . . . . Derelict Logs Recovered 4 | . . 2 2 . . . . Drone Launches . | . . . . . . . . Drone Recoveries . | . . . . . . . . Exploration | -11 -10 -10 -10 -8 -8 -8 -8 ------------- Run | Yrd Mat Min Sub Mat Gar Mat Gar Turns Passed 3979 | 34 804 297 884 888 455 267 350 Spaces Moved 2599 | 37 625 296 588 428 305 130 190 Core 307 | 35 264 1 . 2 . . 5 Treads 371 | 2 11 39 168 151 . . . Legs 841 | . . . . 221 305 130 185 Wheels 474 | . . . 420 54 . . . Hover 543 | . 350 193 . . . . . Flight 63 | . . 63 . . . . . Fastest Speed 50 | 50 50 56 110 120 120 120 50 Average Speed 104 | 55 55 81 129 139 120 120 118 Slowest Speed 650 | 160 160 200 225 650 120 120 190 Overloaded Moves . | . . . . . . . . Propulsion Burnouts . | . . . . . . . . Robots Hopped . | . . . . . . . . Potential Cave-ins . | . . . . . . . . Cave-ins Triggered . | . . . . . . . . Exploration Rate (%) 40 | 3 81 60 53 49 43 17 16 Regions Visited 7 Branch Regions 2 Pre-discovered Areas 4 | . 2 1 . 1 . . . Known Exits Taken 2 | . . . . 1 . 1 . Unknown Exits Taken 4 | 1 1 1 1 . . . . Scrap Searched 5 | . . 1 4 . . . . Spaces Dug 13 | . 3 . . 1 5 . 4 Terrain Destroyed 156 | . 38 . . 36 61 13 8 Melee 10 | . . . . 1 5 . 4 Projectile 5 | . 3 . . 1 . . 1 AOE 141 | . 35 . . 34 56 13 3 Terrain Rammed . | . . . . . . . . Walls Destroyed . | . . . . . . . . Machines Disabled . | . . . . . . . . Actions | -11 -10 -10 -10 -8 -8 -8 -8 --------- Run | Yrd Mat Min Sub Mat Gar Mat Gar Total 3493 | 44 1028 337 671 603 363 183 264 Wait 460 | . 341 5 26 61 12 14 1 Move 2593 | 36 624 295 587 428 304 129 190 Hop . | . . . . . . . . Pick Up 40 | 1 7 5 1 10 4 2 10 Fast Attach 48 | 4 6 4 5 24 2 1 2 Attach 21 | . 3 1 3 3 5 3 3 Detach 10 | . 4 . 1 2 3 . . Swap 27 | . . 1 3 4 7 3 9 Drop 36 | . 3 5 10 8 2 . 8 Fire 177 | 3 40 18 28 49 7 5 27 Melee 62 | . . . . 9 14 26 13 Ram 2 | . . . . 1 . . 1 Kick 1 | . . . . 1 . . . Crush 6 | . . 3 . 3 . . . Escape Stasis 2 | . . . . . 2 . . Rewire 1 | . . . . . 1 . . Trap . | . . . . . . . . Miscellaneous 7 | . . . 7 . . . . Route ------- -11/Scrapyard -10/Materials (discovered 2 exits: [*Mat] / *Min) -10/Mines (discovered 2 exits: [*Mat] / [*Sub]) -10/Subcaves -8/Materials (discovered 4 exits: Fac x3 / Gar) -8/Garrison -8/Materials (discovered 2 exits: *Fac / Gar) -8/Garrison (discovered 3 exits: Fac x3) History --------- Turn | Location | Event 7 | -11/Scrapyard | Discovered new exit (range 13) 35 | -11/Scrapyard | Entered Materials 145 | -10/Materials | Discovered new exit (range 6) 154 | -10/Materials | Discovered new exit (range 15) 316 | -10/Materials | Build established: Mutant 395 | -10/Materials | Learned Storage emergency access door positions 461 | -10/Materials | Learned Storage security intel 519 | -10/Materials | Learned 2 Mines zone layouts 835 | -10/Materials | Derelicts attacked the area 839 | -10/Materials | Entered Mines 840 | -10/Mines | Assembled infested the area 842 | -10/Mines | Core integrity fell below 50% 845 | -10/Mines | Assisted by a Guerilla fighting off Assembled 852 | -10/Mines | Assisted by bots powering up and referring to "LRC-V3" 857 | -10/Mines | Learned Materials emergency access door positions 938 | -10/Mines | Received a Rocket Launcher from a helpful Derelict 947 | -10/Mines | Lost 3 allies 952 | -10/Mines | Found a damaged Exp. Sensor Array with a note attached 954 | -10/Mines | Found Prototype Device 965 | -10/Mines | Discovered new exit (range 8) 1057 | -10/Mines | Met a Derelict who couldn't figure out how to use a Trap Extractor 1124 | -10/Mines | Discovered new exit (range 9) 1136 | -10/Mines | Entered Subcaves 1137 | -10/Subcaves | Approached by a straggling Scientist 1219 | -10/Subcaves | A swath of the cavern ceiling suddenly collapsed 1832 | -10/Subcaves | Learned Materials interactive machine intel 1835 | -10/Subcaves | Shifting Twisted Machinery released Battle Rifle 1838 | -10/Subcaves | Shifting Twisted Machinery released Spk. Treads 1910 | -10/Subcaves | Ambushed by Subdwellers from Twisted Machinery 1988 | -10/Subcaves | Discovered new exit (range 7) 1994 | -10/Subcaves | Learned Materials trap positions 2020 | -10/Subcaves | Entered Materials 2020 | -8/Materials | Evolved 4 slots: Propulsion x2, Utility x2 2021 | -8/Materials | Loaded intel: 24 trap records 2023 | -8/Materials | Loaded intel: 19 interactive machine locations 2081 | -8/Materials | Identified Exp. Sensor Array 2164 | -8/Materials | Build established: Derelict-Mutant 2385 | -8/Materials | Lost 5 parts (1p3n1w) 2608 | -8/Materials | Core integrity fell below 50% 2640 | -8/Materials | Lost 7 parts (3n1u3w) 2709 | -8/Materials | Identified exit to Factory 2746 | -8/Materials | Learned 2 Storage zone layouts 2791 | -8/Materials | Learned Factory stockpile data 2801 | -8/Materials | Learned location of Extension (-5) 2802 | -8/Materials | Learned location of 1 exit from Recycling 2830 | -8/Materials | Learned 4 Factory zone layouts 2908 | -8/Materials | Identified exit to Garrison 2908 | -8/Materials | Entered Garrison 2954 | -8/Garrison | Build established: Hacker-Mutant 2955 | -8/Garrison | Phase Generator disabled 2974 | -8/Garrison | Installed Relay Interface Framework 3034 | -8/Garrison | Garrison Relay disabled 3062 | -8/Garrison | Triggered checkpoint 3200 | -8/Garrison | Triggered checkpoint 3210 | -8/Garrison | Triggered checkpoint 3315 | -8/Garrison | Discovered new exit (range 10) 3318 | -8/Garrison | Triggered checkpoint 3363 | -8/Garrison | Entered Materials 3378 | -8/Materials | Lost 3 allies 3494 | -8/Materials | Build established: Mutant 3507 | -8/Materials | Garrison activated, responded to threat 3584 | -8/Materials | Lost 3 parts (1p2n) 3585 | -8/Materials | Identified exit to Garrison 3596 | -8/Materials | Discovered exit to Factory (range 16) 3630 | -8/Materials | Entered Garrison 3822 | -8/Garrison | Triggered checkpoint 3841 | -8/Garrison | Discovered exit to Factory (range 80) 3841 | -8/Garrison | Discovered exit to Factory (range 92) 3841 | -8/Garrison | Discovered exit to Factory (range 75) 3910 | -8/Garrison | Triggered checkpoint 3918 | -8/Garrison | System corruption reached 10% 3934 | -8/Garrison | Core integrity fell below 20% 3980 | -8/Garrison | Destroyed by P-60 Hacker with Shock Rifle Last Messages --------------- 03935_ Slug penetrates Wall. 03939_ System corrupted: Gauss Rifle jammed. 03941_ Slug penetrates Wall. 03942_ Carbon-fiber Leg destroyed. 03943_ Slug penetrates Wall. 03945_ P-60 Hacker destroyed. 03947_ :MFWERCXOV6IZ0QZ1I YJ,5KYQ 0SHJM6N6QWY 03953_ Acquired Lgt. Assault Rifle. 03955_ Acquired 9 matter. 03957_ Acquired 15 matter. 03964_ System corrupted: IFF burst signal emitted. 03968_ Destroyed Flight Unit. 03971_ Carbon-fiber Leg destroyed. 03972_ Lgt. Ion Engine destroyed. 03974_ Carbon-fiber Leg destroyed. 03975_ Gauss Rifle destroyed. 03976_ Dropped Lrg. Storage Unit. 03978_ Lgt. Assault Rifle destroyed. 03978_ Slammed into P-60 Hacker. Map ----- +----------------------------------------------------+ | #?????##"### #?????# #???#+#####^^^####### #?? | | ###???#T ## #?????# #???# ##^^^#?????# #?? | | + #???# ## #######+#####""""## #?????# #?? | | ####???# ####### #?? | | ???????###### + #?? | | ????????????# + #?? | | ????????????############ # ## ##########?? | | ?????????????????????### # ## ###????????? | | ?????????????????????# [ " #????????? | | ?????????????????????# " #????????? | | ?????????????????????# " ###??????? | | ###??????????????????# " + #??????? | | ""#??????????????????### ## ## ### #??????? | | ######????????????????# ## ## #?# #??????? | | #????????????????# #?# #??????? | | #????????????????# #?# #??????? | | #### #????????????????# #?# #??????? | | ???# #????????????????##!!##""""## ### ######## | | ???#^^#?????????????????#!|## ## + | | ???# ###???????????????#!!######## ### ######## | | ???# " #???????????????#!!#??????# #?# #??????? | | ???# " #???????????????#!!#??????# #?# #??????? | | ???# " #???????????????# #??????# #?# #?###??? | | ???# ###????????????#### #??????# ###+###T#### | | ???# ################ ## p#??????# | | ???# @p#??????# | | ???# #??????# | | ???# ################# =#??????##+####++#####+# | | ???# #???????????????### #???????# #??# #???# # | | ???# #?????????????????# #???????# #??# #???# # | | ???# #?????????????????# #???????# #??#++#####+# | | ???# #?????????????????# #???????# #### ^^ | | ???# #?????????????????# #???????# + ^^ | | ???# #?????????????????# #???????####### ##### | | ???# #?????????????????# #????????????#"""""#??# | | ???# ###???????????????# #????????????#######??# | | ??## ##??????????????# #?????????????????????? | | ??#" "#??????????????# #?????????????????????? | | ??## ##??????????????# #?????????????????????? | | ???# ###???????????????# #?????????????????????? | | ???# #?????????????????# #?????????????????????? | | ???# #?????????????????# #?????????????????????? | | ???# #?????????????????# #?????????????????????? | | ???# #?????????????????# #?????????????????????? | | ##?# #?????????????????# #?????????????????????? | | #?# #?????????????????# #?????????????????????? | | =### ################### #?????????????????????? | | ^^ + [! #?????????????????????? | | ^^ " ! =!#?????????????????????? | | ########"################!####???????????????????? | +----------------------------------------------------+ Best States ------------- Heat Dissipation 45 Energy Generation 14 Energy Capacity 265 Matter Stores 300 Matter Capacity 300 Sight Range 16 Terrain Scan Density 10 Armor Coverage 1050 Resistance: KI 10 Evasion (%) 55 Recoil Reduction 4 Offensive Hacking 10 Defensive Hacking 10 Relay Coupler Types 2 Relay Coupler Value 59 Item Schematics ----------------- None Robot Schematics ------------------ None Fabricated ------------ Nothing Repaired ---------- Nothing Alien Tech Used ----------------- None Achievements -------------- None Challenges ------------ None Game ------ Seed GammaRocketShearcannon Manual? 0 Play Time 00:49:37 Cumulative 275.1 hours Start 2025.06.24 @ 18:10:19 End 2025.06.24 @ 19:00:19 Sessions 1 Manual Loads 0 Difficulty Rogue Special Mode None Game No. 135 Rogue 135 Adventurer 0 Explorer 0 Win Type - Total 17 Types 6/0/5/1/4/1/0/0/0/0 Lore% 83 Gallery% 72 Achievement% 68 Wizard Run 0 Options --------- Layout 1 ASCII 0 Keyboard 0 Movement Numpad Keybinds 0 Fullscreen 1 Font 24/Smallcaps Map View 50x35 Zoom Use 0% Tactical HUD 1 Map Filters NONE Filters NONE Steam 1 RUN: fd66eae8-8d26-4ec0-a0fd-9d6b14bd7c14